[Event "Late-Titled-Tuesday-Blitz-June-18-2024"]
[Site "Chess.com"]
[Date "2024.06.18"]
[Round "4"]
[White "azikom"]
[Black "MarceloPlaya"]
[Result "1-0"]
[WhiteElo "2682"]
[BlackElo "2410"]
[TimeControl "180+1"]
[EndTime "14:40:35 PDT"]
[Termination "azikom won on time"]

1. c4 {[%clk 0:03:00.7]} 1... e6 {[%clk 0:03:00.1]} 2. Nc3 {[%clk 0:02:59.4]}
2... Nf6 {[%clk 0:02:59.7]} 3. e3 {[%clk 0:02:59.9]} 3... d5 {[%clk 0:02:59.6]}
4. d4 {[%clk 0:03:00.1]} 4... Bb4 {[%clk 0:02:58.6]} 5. Nf3 {[%clk 0:03:00.1]}
5... O-O {[%clk 0:02:58.4]} 6. Bd2 {[%clk 0:02:56.1]} 6... Nc6 {[%clk
0:02:56.4]} 7. Rc1 {[%clk 0:02:52.7]} 7... Bxc3 {[%clk 0:02:55.4]} 8. Bxc3
{[%clk 0:02:52.6]} 8... Ne4 {[%clk 0:02:55.6]} 9. Qc2 {[%clk 0:02:51.1]} 9...
Bd7 {[%clk 0:02:51.4]} 10. b4 {[%clk 0:02:48.7]} 10... Nxc3 {[%clk 0:02:49.7]}
11. Qxc3 {[%clk 0:02:48.5]} 11... Ne7 {[%clk 0:02:48.5]} 12. Be2 {[%clk
0:02:44.8]} 12... dxc4 {[%clk 0:02:42.8]} 13. Qxc4 {[%clk 0:02:44.4]} 13... Bc6
{[%clk 0:02:42.1]} 14. O-O {[%clk 0:02:44.4]} 14... a6 {[%clk 0:02:38.1]} 15.
Qc2 {[%clk 0:02:40.8]} 15... Qd5 {[%clk 0:02:22.8]} 16. a3 {[%clk 0:02:40]}
16... Rfc8 {[%clk 0:02:19.2]} 17. Qc5 {[%clk 0:02:38.5]} 17... Qxc5 {[%clk
0:02:03.1]} 18. Rxc5 {[%clk 0:02:39.4]} 18... f6 {[%clk 0:01:21.5]} 19. Rfc1
{[%clk 0:02:39]} 19... Ra7 {[%clk 0:01:15.8]} 20. h4 {[%clk 0:02:35.7]} 20...
Kf8 {[%clk 0:01:14.6]} 21. h5 {[%clk 0:02:35.3]} 21... Ke8 {[%clk 0:01:12.6]}
22. Nd2 {[%clk 0:02:30.7]} 22... Kd7 {[%clk 0:01:07.3]} 23. f3 {[%clk
0:02:24.8]} 23... b6 {[%clk 0:01:05.8]} 24. R5c2 {[%clk 0:02:21.7]} 24... Ba8
{[%clk 0:01:02]} 25. Kf2 {[%clk 0:02:21.4]} 25... a5 {[%clk 0:01:01.2]} 26. b5
{[%clk 0:02:21.1]} 26... c5 {[%clk 0:00:58.6]} 27. dxc5 {[%clk 0:02:19.3]} 27...
Rxc5 {[%clk 0:00:54.3]} 28. Rxc5 {[%clk 0:02:19.4]} 28... bxc5 {[%clk
0:00:54.3]} 29. Rxc5 {[%clk 0:02:19.8]} 29... Kd6 {[%clk 0:00:52.3]} 30. Rc2
{[%clk 0:02:16.5]} 30... Nd5 {[%clk 0:00:43.2]} 31. Nc4+ {[%clk 0:02:09.8]}
31... Ke7 {[%clk 0:00:34]} 32. Bd3 {[%clk 0:02:08.4]} 32... h6 {[%clk
0:00:31.2]} 33. g4 {[%clk 0:02:01.9]} 33... a4 {[%clk 0:00:27.3]} 34. e4 {[%clk
0:01:57.7]} 34... Nf4 {[%clk 0:00:26.1]} 35. Bf1 {[%clk 0:01:58.1]} 35... e5
{[%clk 0:00:23.2]} 36. Ne3 {[%clk 0:01:57.6]} 36... Rd7 {[%clk 0:00:14.9]} 37.
Nf5+ {[%clk 0:01:54.7]} 37... Kf7 {[%clk 0:00:14.7]} 38. Rc8 {[%clk 0:01:48.5]}
38... Bb7 {[%clk 0:00:14]} 39. Bc4+ {[%clk 0:01:46.8]} 39... Ne6 {[%clk
0:00:09.1]} 40. Rb8 {[%clk 0:01:46]} 40... g6 {[%clk 0:00:01.7]} 41. hxg6+
{[%clk 0:01:42.3]} 1-0

[Event "Late-Titled-Tuesday-Blitz-June-18-2024"]
[Site "Chess.com"]
[Date "2024.06.18"]
[Round "4"]
[White "Itay121"]
[Black "Seppppppy"]
[Result "0-1"]
[WhiteElo "2521"]
[BlackElo "2254"]
[TimeControl "180+1"]
[EndTime "14:40:39 PDT"]
[Termination "Seppppppy won by checkmate"]

1. d4 {[%clk 0:03:00.9]} 1... Nf6 {[%clk 0:02:41.1]} 2. c4 {[%clk 0:03:00.5]}
2... c5 {[%clk 0:02:38.2]} 3. Nf3 {[%clk 0:02:57.9]} 3... cxd4 {[%clk
0:02:37.7]} 4. Nxd4 {[%clk 0:02:58.8]} 4... Nc6 {[%clk 0:02:37.9]} 5. Nc3 {[%clk
0:02:58.1]} 5... g6 {[%clk 0:02:32.5]} 6. g3 {[%clk 0:02:57.4]} 6... d6 {[%clk
0:02:32.5]} 7. Bg2 {[%clk 0:02:56.4]} 7... Bd7 {[%clk 0:02:32.7]} 8. O-O {[%clk
0:02:55.5]} 8... Bg7 {[%clk 0:02:33]} 9. h3 {[%clk 0:02:52]} 9... O-O {[%clk
0:02:33.1]} 10. e4 {[%clk 0:02:50.4]} 10... Nxe4 {[%clk 0:02:20.8]} 11. Nxc6
{[%clk 0:02:44.9]} 11... Nxc3 {[%clk 0:02:20.9]} 12. Nxd8 {[%clk 0:02:28.1]}
12... Nxd1 {[%clk 0:02:20.6]} 13. Nxb7 {[%clk 0:02:25.9]} 13... Nxb2 {[%clk
0:02:20.2]} 14. Bxb2 {[%clk 0:02:02.9]} 14... Bxb2 {[%clk 0:02:19.7]} 15. Rab1
{[%clk 0:02:03.4]} 15... Bg7 {[%clk 0:02:16.7]} 16. c5 {[%clk 0:02:00.4]} 16...
Bf5 {[%clk 0:02:02.6]} 17. Rbd1 {[%clk 0:01:27.5]} 17... dxc5 {[%clk 0:01:56.2]}
18. Nxc5 {[%clk 0:01:26.2]} 18... Rac8 {[%clk 0:01:55.9]} 19. Nb3 {[%clk
0:01:17.2]} 19... Rc2 {[%clk 0:01:52.1]} 20. g4 {[%clk 0:01:07.1]} 20... Be6
{[%clk 0:01:47.2]} 21. Na5 {[%clk 0:00:56.8]} 21... Rxa2 {[%clk 0:01:42]} 22.
Nc6 {[%clk 0:00:56.6]} 22... Bf6 {[%clk 0:01:41.8]} 23. f4 {[%clk 0:00:43.5]}
23... Rc8 {[%clk 0:01:39.3]} 24. g5 {[%clk 0:00:42.4]} 24... Rxg2+ {[%clk
0:01:14.3]} 25. Kxg2 {[%clk 0:00:43.3]} 25... Rxc6 {[%clk 0:01:14.7]} 26. gxf6
{[%clk 0:00:42.3]} 26... exf6 {[%clk 0:01:15.6]} 27. Ra1 {[%clk 0:00:38.5]}
27... Bd5+ {[%clk 0:01:04.3]} 28. Kg3 {[%clk 0:00:32.7]} 28... Rc3+ {[%clk
0:01:03.4]} 29. Kh4 {[%clk 0:00:29.8]} 29... Bg2 {[%clk 0:00:54.6]} 30. Rg1
{[%clk 0:00:23]} 30... Rxh3+ {[%clk 0:00:54.1]} 31. Kg4 {[%clk 0:00:22.7]} 31...
f5+ {[%clk 0:00:53.4]} 32. Kg5 {[%clk 0:00:21.6]} 32... Kg7 {[%clk 0:00:54]} 33.
Rxa7 {[%clk 0:00:17.2]} 33... Rh5# {[%clk 0:00:53.4]} 0-1

[Event "Late-Titled-Tuesday-Blitz-June-18-2024"]
[Site "Chess.com"]
[Date "2024.06.18"]
[Round "4"]
[White "elis06"]
[Black "topin8"]
[Result "0-1"]
[WhiteElo "2365"]
[BlackElo "2526"]
[TimeControl "180+1"]
[EndTime "14:40:39 PDT"]
[Termination "topin8 won by checkmate"]

1. d4 {[%clk 0:03:00.9]} 1... Nf6 {[%clk 0:02:57.6]} 2. c4 {[%clk 0:03:00.5]}
2... e6 {[%clk 0:02:57.6]} 3. Nc3 {[%clk 0:03:00.4]} 3... d5 {[%clk 0:02:56.9]}
4. Nf3 {[%clk 0:02:58.8]} 4... h6 {[%clk 0:02:56.2]} 5. g3 {[%clk 0:02:57.9]}
5... Bd6 {[%clk 0:02:56.5]} 6. Bg2 {[%clk 0:02:57.6]} 6... O-O {[%clk
0:02:56.8]} 7. O-O {[%clk 0:02:57.4]} 7... Nc6 {[%clk 0:02:57.2]} 8. b3 {[%clk
0:02:53.7]} 8... dxc4 {[%clk 0:02:55]} 9. bxc4 {[%clk 0:02:53.6]} 9... e5 {[%clk
0:02:55.4]} 10. d5 {[%clk 0:02:44.1]} 10... Na5 {[%clk 0:02:48.8]} 11. Nd2
{[%clk 0:02:37.7]} 11... b6 {[%clk 0:02:49.1]} 12. Bb2 {[%clk 0:02:36]} 12...
Ba6 {[%clk 0:02:40.8]} 13. Nb5 {[%clk 0:02:21.6]} 13... Nxc4 {[%clk 0:02:00.5]}
14. Nxc4 {[%clk 0:02:12]} 14... Bxb5 {[%clk 0:02:00.3]} 15. Nxe5 {[%clk
0:02:03.6]} 15... Bxe5 {[%clk 0:01:45.6]} 16. Bxe5 {[%clk 0:02:02.6]} 16... Re8
{[%clk 0:01:46.5]} 17. Bxf6 {[%clk 0:01:20.3]} 17... Qxf6 {[%clk 0:01:47.4]} 18.
Re1 {[%clk 0:01:19.9]} 18... Rxe2 {[%clk 0:01:21.1]} 19. Qb3 {[%clk 0:01:05.8]}
19... Rae8 {[%clk 0:01:18.2]} 20. Rxe2 {[%clk 0:00:58.1]} 20... Bxe2 {[%clk
0:01:19.1]} 21. Rc1 {[%clk 0:00:55.7]} 21... Re7 {[%clk 0:01:11.6]} 22. Qc2
{[%clk 0:00:50.2]} 22... g6 {[%clk 0:01:05]} 23. Re1 {[%clk 0:00:47.3]} 23...
Bb5 {[%clk 0:00:25.1]} 24. Rxe7 {[%clk 0:00:38.4]} 24... Qa1+ {[%clk 0:00:21.9]}
25. Bf1 {[%clk 0:00:31.6]} 25... Qxf1# {[%clk 0:00:21.8]} 0-1

[Event "Late-Titled-Tuesday-Blitz-June-18-2024"]
[Site "Chess.com"]
[Date "2024.06.18"]
[Round "4"]
[White "Gyulamiryan-koryun"]
[Black "jamengrand"]
[Result "0-1"]
[WhiteElo "1663"]
[BlackElo "2297"]
[TimeControl "180+1"]
[EndTime "14:40:41 PDT"]
[Termination "jamengrand won on time"]

1. e4 {[%clk 0:03:00.9]} 1... e5 {[%clk 0:02:58.9]} 2. Nf3 {[%clk 0:03:00.1]}
2... Nc6 {[%clk 0:02:59.1]} 3. Bc4 {[%clk 0:02:59.1]} 3... Nf6 {[%clk
0:02:58.7]} 4. d4 {[%clk 0:02:56.2]} 4... exd4 {[%clk 0:02:57.5]} 5. e5 {[%clk
0:02:56.3]} 5... Ne4 {[%clk 0:02:57.4]} 6. Bd5 {[%clk 0:02:49.2]} 6... Nc5
{[%clk 0:02:56.8]} 7. Bxc6 {[%clk 0:02:47.1]} 7... dxc6 {[%clk 0:02:55.6]} 8.
Qxd4 {[%clk 0:02:46]} 8... Bf5 {[%clk 0:02:53.3]} 9. Qxd8+ {[%clk 0:02:29.2]}
9... Rxd8 {[%clk 0:02:52.5]} 10. Na3 {[%clk 0:02:24.7]} 10... Na4 {[%clk
0:02:42.6]} 11. Bg5 {[%clk 0:02:18.8]} 11... Rd7 {[%clk 0:02:11.1]} 12. Bc1
{[%clk 0:01:51.8]} 12... Bb4+ {[%clk 0:02:06.8]} 13. c3 {[%clk 0:01:50.6]} 13...
Nxc3 {[%clk 0:02:06.1]} 14. O-O {[%clk 0:01:38.2]} 14... Ne2+ {[%clk 0:01:58.9]}
15. Kh1 {[%clk 0:01:37.5]} 15... Nxc1 {[%clk 0:01:52.2]} 16. Raxc1 {[%clk
0:01:36.4]} 16... Bxa3 {[%clk 0:01:48.3]} 17. bxa3 {[%clk 0:01:35.7]} 17... Ke7
{[%clk 0:01:45.7]} 18. Nh4 {[%clk 0:01:26.3]} 18... Be6 {[%clk 0:01:41.7]} 19.
Rc2 {[%clk 0:01:24.3]} 19... Rhd8 {[%clk 0:01:39.9]} 20. f4 {[%clk 0:01:20.8]}
20... Rd2 {[%clk 0:01:40]} 21. Rxd2 {[%clk 0:01:08.2]} 21... Rxd2 {[%clk
0:01:40.9]} 22. f5 {[%clk 0:01:04.8]} 22... Bc4 {[%clk 0:01:39.7]} 23. Re1
{[%clk 0:00:57.5]} 23... Rxa2 {[%clk 0:01:29.6]} 24. f6+ {[%clk 0:00:50.7]}
24... gxf6 {[%clk 0:01:29.3]} 25. Nf5+ {[%clk 0:00:50.8]} 25... Ke6 {[%clk
0:01:25.7]} 26. Nd4+ {[%clk 0:00:49.6]} 26... Kd5 {[%clk 0:01:25.5]} 27. Nf3
{[%clk 0:00:38.9]} 27... fxe5 {[%clk 0:01:20.6]} 28. Rxe5+ {[%clk 0:00:37.9]}
28... Kd6 {[%clk 0:01:21]} 29. Re1 {[%clk 0:00:36.6]} 29... Bd5 {[%clk
0:01:20.4]} 30. Nh4 {[%clk 0:00:17.6]} 30... c5 {[%clk 0:01:17.2]} 31. Nf5+
{[%clk 0:00:15.8]} 31... Kc6 {[%clk 0:01:17.7]} 32. Ne7+ {[%clk 0:00:14.1]}
32... Kd6 {[%clk 0:01:17.8]} 33. Nf5+ {[%clk 0:00:14.2]} 33... Kd7 {[%clk
0:01:17.9]} 34. Ne3 {[%clk 0:00:10.4]} 34... Be6 {[%clk 0:01:17.5]} 35. Rd1+
{[%clk 0:00:07]} 35... Kc6 {[%clk 0:01:16.7]} 0-1

[Event "Late-Titled-Tuesday-Blitz-June-18-2024"]
[Site "Chess.com"]
[Date "2024.06.18"]
[Round "4"]
[White "Dr_troll"]
[Black "unbreakablepawn35"]
[Result "1-0"]
[WhiteElo "2654"]
[BlackElo "2447"]
[TimeControl "180+1"]
[EndTime "14:40:49 PDT"]
[Termination "Dr_troll won by resignation"]

1. c4 {[%clk 0:02:59.7]} 1... Nf6 {[%clk 0:02:59.1]} 2. Nc3 {[%clk 0:02:59.6]}
2... g6 {[%clk 0:02:59.3]} 3. g3 {[%clk 0:02:58.2]} 3... Bg7 {[%clk 0:02:58.8]}
4. Bg2 {[%clk 0:02:58.8]} 4... O-O {[%clk 0:02:58.9]} 5. Nf3 {[%clk 0:02:59.4]}
5... d6 {[%clk 0:02:59.3]} 6. O-O {[%clk 0:03:00]} 6... Nbd7 {[%clk 0:02:59.9]}
7. d4 {[%clk 0:02:59.8]} 7... e5 {[%clk 0:03:00.3]} 8. h3 {[%clk 0:02:58.2]}
8... c6 {[%clk 0:02:58.3]} 9. e4 {[%clk 0:02:57.9]} 9... Qc7 {[%clk 0:02:55.6]}
10. Be3 {[%clk 0:02:57.6]} 10... Re8 {[%clk 0:02:54.9]} 11. Qc2 {[%clk
0:02:57.1]} 11... b6 {[%clk 0:02:54.1]} 12. Rfd1 {[%clk 0:02:54.6]} 12... exd4
{[%clk 0:02:51.3]} 13. Nxd4 {[%clk 0:02:54.4]} 13... Bb7 {[%clk 0:02:51.7]} 14.
Rac1 {[%clk 0:02:53.9]} 14... Ne5 {[%clk 0:02:51]} 15. b3 {[%clk 0:02:53.6]}
15... a6 {[%clk 0:02:49.7]} 16. f4 {[%clk 0:02:52.8]} 16... Ned7 {[%clk
0:02:49.4]} 17. Kh2 {[%clk 0:02:51.6]} 17... Rad8 {[%clk 0:02:40.5]} 18. Re1
{[%clk 0:02:39.3]} 18... Re7 {[%clk 0:02:15.2]} 19. g4 {[%clk 0:02:35.8]} 19...
Rde8 {[%clk 0:02:10.9]} 20. Nde2 {[%clk 0:02:26.3]} 20... Nc5 {[%clk 0:01:36]}
21. Ng3 {[%clk 0:02:24]} 21... a5 {[%clk 0:01:35.2]} 22. Rcd1 {[%clk 0:02:20.8]}
22... d5 {[%clk 0:01:30]} 23. e5 {[%clk 0:02:18]} 23... Nfe4 {[%clk 0:00:58.3]}
24. Ncxe4 {[%clk 0:02:16.5]} 24... Nxe4 {[%clk 0:00:58.5]} 25. Nxe4 {[%clk
0:02:15.9]} 25... dxe4 {[%clk 0:00:59.1]} 26. Qxe4 {[%clk 0:01:57.1]} 26... f6
{[%clk 0:00:59.1]} 27. Bf2 {[%clk 0:01:36]} 27... fxe5 {[%clk 0:00:59]} 28. f5
{[%clk 0:01:36.2]} 28... gxf5 {[%clk 0:00:46.9]} 29. gxf5 {[%clk 0:01:36.7]}
29... Bf6 {[%clk 0:00:47.3]} 30. Bf3 {[%clk 0:01:31.7]} 30... Qc8 {[%clk
0:00:38.7]} 31. Rd6 {[%clk 0:01:29.4]} 31... c5 {[%clk 0:00:28.1]} 32. Qe3
{[%clk 0:01:15.7]} 32... Bxf3 {[%clk 0:00:27.2]} 33. Rxf6 {[%clk 0:01:10]} 33...
e4 {[%clk 0:00:22.1]} 34. Rg1+ {[%clk 0:01:09.6]} 34... Rg7 {[%clk 0:00:22.3]}
35. Rxg7+ {[%clk 0:01:10.1]} 35... Kxg7 {[%clk 0:00:22.9]} 36. Qg5+ {[%clk
0:01:10.2]} 36... Kh8 {[%clk 0:00:23.6]} 37. Rf7 {[%clk 0:01:08.3]} 37... Qb8+
{[%clk 0:00:07.2]} 38. Bg3 {[%clk 0:01:07.5]} 1-0

[Event "Late-Titled-Tuesday-Blitz-June-18-2024"]
[Site "Chess.com"]
[Date "2024.06.18"]
[Round "4"]
[White "KNVB"]
[Black "pompey831"]
[Result "1-0"]
[WhiteElo "2792"]
[BlackElo "2518"]
[TimeControl "180+1"]
[EndTime "14:40:50 PDT"]
[Termination "KNVB won by checkmate"]

1. d4 {[%clk 0:02:52.8]} 1... e6 {[%clk 0:02:57.1]} 2. Bf4 {[%clk 0:02:52.8]}
2... c5 {[%clk 0:02:53.6]} 3. e3 {[%clk 0:02:52.3]} 3... Ne7 {[%clk 0:02:46.9]}
4. c3 {[%clk 0:02:47.2]} 4... Ng6 {[%clk 0:02:43.4]} 5. Bg3 {[%clk 0:02:47.5]}
5... h5 {[%clk 0:02:42.4]} 6. h3 {[%clk 0:02:47.3]} 6... Qb6 {[%clk 0:02:37.8]}
7. Qb3 {[%clk 0:02:42.3]} 7... d5 {[%clk 0:02:28.8]} 8. Nd2 {[%clk 0:02:41]}
8... c4 {[%clk 0:02:22.6]} 9. Qxb6 {[%clk 0:02:41.1]} 9... axb6 {[%clk
0:02:21.2]} 10. Bxb8 {[%clk 0:02:41.1]} 10... Rxb8 {[%clk 0:02:19.8]} 11. a3
{[%clk 0:02:41.9]} 11... b5 {[%clk 0:02:14.4]} 12. h4 {[%clk 0:02:37]} 12... Bd7
{[%clk 0:02:12.8]} 13. Be2 {[%clk 0:02:17.4]} 13... Bc6 {[%clk 0:02:11.6]} 14.
Bd1 {[%clk 0:02:13.4]} 14... Ne7 {[%clk 0:02:10.5]} 15. Bc2 {[%clk 0:02:01.2]}
15... Nc8 {[%clk 0:02:10.4]} 16. Ngf3 {[%clk 0:01:53.9]} 16... f5 {[%clk
0:02:07.9]} 17. Ng5 {[%clk 0:01:23.5]} 17... Ke7 {[%clk 0:01:59.1]} 18. Ndf3
{[%clk 0:01:22.3]} 18... Nb6 {[%clk 0:01:51.7]} 19. Ne5 {[%clk 0:01:20.3]} 19...
Kf6 {[%clk 0:01:50.9]} 20. f3 {[%clk 0:01:03.4]} 20... Bd6 {[%clk 0:01:48.9]}
21. e4 {[%clk 0:01:01.1]} 21... Be8 {[%clk 0:01:41.7]} 22. exf5 {[%clk
0:00:28.1]} 22... exf5 {[%clk 0:01:40.5]} 23. O-O-O {[%clk 0:00:28.8]} 23... Nd7
{[%clk 0:01:12.2]} 24. f4 {[%clk 0:00:22.5]} 24... Nf8 {[%clk 0:01:06.1]} 25.
Rhe1 {[%clk 0:00:17.8]} 25... Rc8 {[%clk 0:01:02.3]} 26. Re3 {[%clk 0:00:16.9]}
26... Rd8 {[%clk 0:00:47.3]} 27. Rde1 {[%clk 0:00:17]} 27... Rc8 {[%clk
0:00:47]} 28. Ng4+ {[%clk 0:00:15.8]} 28... hxg4 {[%clk 0:00:30.5]} 29. Re6+
{[%clk 0:00:15.5]} 29... Nxe6 {[%clk 0:00:30.6]} 30. Rxe6# {[%clk 0:00:16.3]}
1-0

[Event "Late-Titled-Tuesday-Blitz-June-18-2024"]
[Site "Chess.com"]
[Date "2024.06.18"]
[Round "4"]
[White "MathiasWomacka"]
[Black "PapaieDudu"]
[Result "1-0"]
[WhiteElo "2520"]
[BlackElo "2358"]
[TimeControl "180+1"]
[EndTime "14:40:53 PDT"]
[Termination "MathiasWomacka won by resignation"]

1. e4 {[%clk 0:03:00.9]} 1... c5 {[%clk 0:03:00.2]} 2. Nf3 {[%clk 0:03:00.2]}
2... d6 {[%clk 0:03:00.6]} 3. d4 {[%clk 0:03:00.2]} 3... cxd4 {[%clk 0:03:01.5]}
4. Nxd4 {[%clk 0:03:00.2]} 4... Nf6 {[%clk 0:03:02.2]} 5. Nc3 {[%clk 0:03:00]}
5... a6 {[%clk 0:03:03.1]} 6. Be2 {[%clk 0:02:59.8]} 6... e6 {[%clk 0:03:03.7]}
7. O-O {[%clk 0:02:57.3]} 7... Be7 {[%clk 0:03:04.6]} 8. f4 {[%clk 0:02:56.8]}
8... Nc6 {[%clk 0:03:05.2]} 9. Be3 {[%clk 0:02:55.6]} 9... Qc7 {[%clk
0:03:04.9]} 10. Kh1 {[%clk 0:02:55]} 10... O-O {[%clk 0:03:04.7]} 11. Qe1 {[%clk
0:02:55.1]} 11... Re8 {[%clk 0:03:03]} 12. Qg3 {[%clk 0:02:54.2]} 12... b5
{[%clk 0:03:02.9]} 13. Nxc6 {[%clk 0:02:51.3]} 13... Qxc6 {[%clk 0:03:03.4]} 14.
e5 {[%clk 0:02:47.2]} 14... Nd5 {[%clk 0:03:00]} 15. Nxd5 {[%clk 0:02:46.3]}
15... exd5 {[%clk 0:03:00.3]} 16. Bd3 {[%clk 0:02:42.4]} 16... dxe5 {[%clk
0:02:56.6]} 17. fxe5 {[%clk 0:02:41]} 17... g6 {[%clk 0:02:52.8]} 18. Bg5 {[%clk
0:02:21.5]} 18... Qc5 {[%clk 0:02:44.1]} 19. Rf4 {[%clk 0:02:09]} 19... Bxg5
{[%clk 0:02:39.2]} 20. Qxg5 {[%clk 0:02:07.2]} 20... Be6 {[%clk 0:02:35.9]} 21.
h4 {[%clk 0:01:53.7]} 21... Qe3 {[%clk 0:02:23.8]} 22. h5 {[%clk 0:01:37.6]}
22... Ra7 {[%clk 0:01:40.4]} 23. hxg6 {[%clk 0:01:25.2]} 23... fxg6 {[%clk
0:01:22.7]} 24. Bxg6 {[%clk 0:01:23.2]} 24... Qxf4 {[%clk 0:00:39]} 25. Qxf4
{[%clk 0:01:20.9]} 25... hxg6 {[%clk 0:00:39]} 26. Rf1 {[%clk 0:01:12.5]} 26...
Rf7 {[%clk 0:00:38.5]} 27. Qc1 {[%clk 0:01:12.4]} 27... Rh7+ {[%clk 0:00:35.6]}
28. Kg1 {[%clk 0:01:11.8]} 28... Bf5 {[%clk 0:00:34.6]} 29. Qf4 {[%clk
0:01:00.1]} 29... Rc7 {[%clk 0:00:31.6]} 30. c3 {[%clk 0:00:55.3]} 30... Rc4
{[%clk 0:00:31.9]} 31. Qg5 {[%clk 0:00:46.3]} 31... Re4 {[%clk 0:00:21.3]} 32.
Rxf5 {[%clk 0:00:43.2]} 1-0

[Event "Late-Titled-Tuesday-Blitz-June-18-2024"]
[Site "Chess.com"]
[Date "2024.06.18"]
[Round "4"]
[White "ChessWarrior7197"]
[Black "LUISMIGUELOV"]
[Result "1-0"]
[WhiteElo "3150"]
[BlackElo "2200"]
[TimeControl "180+1"]
[EndTime "14:40:57 PDT"]
[Termination "ChessWarrior7197 won by resignation"]

1. a3 {[%clk 0:03:00.9]} 1... d5 {[%clk 0:02:59]} 2. d4 {[%clk 0:03:00.6]} 2...
c6 {[%clk 0:02:58.7]} 3. Nf3 {[%clk 0:02:59.9]} 3... Bf5 {[%clk 0:02:59]} 4. Nh4
{[%clk 0:02:53.6]} 4... Bg4 {[%clk 0:02:56.1]} 5. h3 {[%clk 0:02:53.2]} 5... Bh5
{[%clk 0:02:55.3]} 6. g4 {[%clk 0:02:53.1]} 6... e6 {[%clk 0:02:52.1]} 7. Nf3
{[%clk 0:02:53.1]} 7... Bg6 {[%clk 0:02:50.8]} 8. Bg2 {[%clk 0:02:52.3]} 8...
Nf6 {[%clk 0:02:49]} 9. Ne5 {[%clk 0:02:50.6]} 9... Nbd7 {[%clk 0:02:47.8]} 10.
Nxg6 {[%clk 0:02:50.3]} 10... hxg6 {[%clk 0:02:47.4]} 11. c4 {[%clk 0:02:50.1]}
11... Bd6 {[%clk 0:02:46.5]} 12. Nc3 {[%clk 0:02:49.8]} 12... a5 {[%clk
0:02:41.6]} 13. Qd3 {[%clk 0:02:46.6]} 13... Qe7 {[%clk 0:02:36.4]} 14. Bd2
{[%clk 0:02:45.4]} 14... a4 {[%clk 0:02:32]} 15. e4 {[%clk 0:02:41.8]} 15...
dxe4 {[%clk 0:02:29.7]} 16. Nxe4 {[%clk 0:02:42.7]} 16... Nxe4 {[%clk
0:02:28.8]} 17. Qxe4 {[%clk 0:02:41.9]} 17... Nf6 {[%clk 0:02:27.1]} 18. Qe2
{[%clk 0:02:42.5]} 18... O-O {[%clk 0:02:19.5]} 19. O-O {[%clk 0:02:41.4]} 19...
Bc7 {[%clk 0:02:15.1]} 20. Bb4 {[%clk 0:02:36.3]} 20... Bd6 {[%clk 0:02:11.3]}
21. Bc3 {[%clk 0:02:36.9]} 21... Rfd8 {[%clk 0:02:00.5]} 22. Rad1 {[%clk
0:02:36.4]} 22... Bc7 {[%clk 0:02:00]} 23. Rfe1 {[%clk 0:02:36.1]} 23... Qd6
{[%clk 0:01:59.1]} 24. Kf1 {[%clk 0:02:33.5]} 24... Ba5 {[%clk 0:01:47]} 25. Qd2
{[%clk 0:02:25.9]} 25... Bxc3 {[%clk 0:01:45.9]} 26. Qxc3 {[%clk 0:02:26.8]}
26... Qf4 {[%clk 0:01:39.4]} 27. Qe3 {[%clk 0:02:24.8]} 27... Qd6 {[%clk
0:01:28]} 28. Bf3 {[%clk 0:02:21.4]} 28... Ra5 {[%clk 0:01:25.3]} 29. Kg2 {[%clk
0:02:21]} 29... Nh7 {[%clk 0:01:10.4]} 30. h4 {[%clk 0:02:17.5]} 30... g5 {[%clk
0:01:08.6]} 31. h5 {[%clk 0:02:14.5]} 31... Nf6 {[%clk 0:00:36.1]} 32. Re2
{[%clk 0:02:12.7]} 32... b5 {[%clk 0:00:30.6]} 33. Qxg5 {[%clk 0:02:10.7]} 33...
Qc7 {[%clk 0:00:23.1]} 34. h6 {[%clk 0:02:04.7]} 34... Ne8 {[%clk 0:00:22.1]}
35. hxg7 {[%clk 0:01:59.1]} 35... bxc4 {[%clk 0:00:19.7]} 36. Qh6 {[%clk
0:01:59.2]} 36... Nxg7 {[%clk 0:00:18.6]} 37. Rh1 {[%clk 0:01:59.7]} 37... f5
{[%clk 0:00:10.8]} 38. g5 {[%clk 0:01:46.8]} 38... Qf4 {[%clk 0:00:10]} 39. Qh8+
{[%clk 0:01:44.5]} 39... Kf7 {[%clk 0:00:09.1]} 40. Qxd8 {[%clk 0:01:45.4]}
40... Qxg5+ {[%clk 0:00:08.8]} 41. Qxg5 {[%clk 0:01:08]} 1-0

[Event "Late-Titled-Tuesday-Blitz-June-18-2024"]
[Site "Chess.com"]
[Date "2024.06.18"]
[Round "4"]
[White "Andrii_Prydun"]
[Black "mightysmasher"]
[Result "0-1"]
[WhiteElo "2360"]
[BlackElo "2522"]
[TimeControl "180+1"]
[EndTime "14:40:59 PDT"]
[Termination "mightysmasher won on time"]

1. e4 {[%clk 0:03:00.9]} 1... e6 {[%clk 0:02:59.3]} 2. Qe2 {[%clk 0:02:59]} 2...
Nf6 {[%clk 0:02:55.1]} 3. Nc3 {[%clk 0:02:54.4]} 3... Be7 {[%clk 0:02:51.4]} 4.
g4 {[%clk 0:02:27.1]} 4... d5 {[%clk 0:02:39.9]} 5. d3 {[%clk 0:02:21.9]} 5...
dxe4 {[%clk 0:02:37.1]} 6. dxe4 {[%clk 0:02:21]} 6... Nc6 {[%clk 0:02:37.4]} 7.
Be3 {[%clk 0:02:18.3]} 7... e5 {[%clk 0:02:33.8]} 8. h3 {[%clk 0:02:16.8]} 8...
Nd4 {[%clk 0:02:32.8]} 9. Qd2 {[%clk 0:02:14.1]} 9... c5 {[%clk 0:02:27.9]} 10.
Bg2 {[%clk 0:01:58.7]} 10... O-O {[%clk 0:02:25.4]} 11. Nge2 {[%clk 0:01:39.4]}
11... b5 {[%clk 0:02:17.6]} 12. Ng3 {[%clk 0:01:37.8]} 12... b4 {[%clk
0:02:10.1]} 13. Nd5 {[%clk 0:01:31.2]} 13... Nxd5 {[%clk 0:02:08.9]} 14. exd5
{[%clk 0:01:30.5]} 14... Bb7 {[%clk 0:02:08.6]} 15. c3 {[%clk 0:01:24.5]} 15...
bxc3 {[%clk 0:01:53.5]} 16. bxc3 {[%clk 0:01:25.4]} 16... Nb5 {[%clk 0:01:52.9]}
17. Nf5 {[%clk 0:01:20.9]} 17... g6 {[%clk 0:01:39.6]} 18. Nh6+ {[%clk
0:00:38.4]} 18... Kg7 {[%clk 0:01:33.8]} 19. g5 {[%clk 0:00:39.3]} 19... Nd6
{[%clk 0:01:30.6]} 20. h4 {[%clk 0:00:38.1]} 20... Nc4 {[%clk 0:01:29.6]} 21.
Qd3 {[%clk 0:00:35.3]} 21... Nxe3 {[%clk 0:01:29.4]} 22. fxe3 {[%clk 0:00:36.2]}
22... Qd6 {[%clk 0:01:28.3]} 23. e4 {[%clk 0:00:27.6]} 23... c4 {[%clk 0:01:24]}
24. Qf3 {[%clk 0:00:23.6]} 24... Qb6 {[%clk 0:01:17.5]} 25. h5 {[%clk
0:00:20.5]} 25... Bxg5 {[%clk 0:01:15.6]} 26. Ng4 {[%clk 0:00:20.6]} 26... Qb2
{[%clk 0:01:11.6]} 27. Rd1 {[%clk 0:00:19.5]} 27... f5 {[%clk 0:01:05.2]} 28.
hxg6 {[%clk 0:00:15.3]} 28... fxg4 {[%clk 0:00:54.8]} 29. Rxh7+ {[%clk
0:00:11.3]} 29... Kxg6 {[%clk 0:00:47.5]} 0-1